fUST/lending_fUST_20250422
["ID","MTS","AMOUNT","RATE_DAILY","PERIOD"]
[358635432,1745325044407,-500.0,0.00021917,2]
[358635433,1745325044417,-500.0,0.00021917,2]
[358635434,1745325044427,-500.0,0.00021917,2]
[358635435,1745325044436,-500.0,0.00021917,2]
[358635436,1745325044446,-500.0,0.00021917,2]
[358635437,1745325044456,-500.0,0.00021917,2]
[358635438,1745325044467,-614.77,0.00021917,2]
[358635439,1745325044477,-500.0,0.00021917,2]
[358635440,1745325044487,-500.0,0.00021917,2]
[358635441,1745325044497,-510.94224512,0.00021917,2]
[358635442,1745325044507,-500.0,0.00021917,2]
[358635443,1745325044519,-500.0,0.00021917,2]
[358635444,1745325044531,-500.54584082,0.00021917,2]
[358635445,1745325044542,-500.0,0.00021917,2]
[358635446,1745325044552,-500.0,0.00021917,2]
[358635447,1745325044562,-6005.19,0.00021917,2]
[358635448,1745325044572,-500.0,0.00021917,2]
[358635449,1745325044582,-500.0,0.00021917,2]
[358635450,1745325044592,-500.0,0.00021917,2]
[358635451,1745325044602,-500.0,0.00021917,2]
[358635452,1745325044612,-500.0,0.00021917,2]
[358635453,1745325044622,-500.0,0.00021917,2]
[358635454,1745325044632,-500.0,0.00021917,2]
[358635455,1745325044642,-679.36,0.00021917,2]
[358635456,1745325044654,-501.31299266,0.00021917,2]
[358635457,1745325044664,-500.0,0.00021917,2]
[358635458,1745325044673,-500.0,0.00021917,2]
[358635459,1745325044684,-500.0,0.00021917,2]
[358635460,1745325044695,-513.93238625,0.00021917,2]
[358635461,1745325044705,-3154.6,0.00021917,2]
[358635462,1745325044715,-500.0,0.00021917,2]
[358635463,1745325044724,-500.0,0.00021917,2]
[358635464,1745325044734,-500.0,0.00021917,2]
[358635465,1745325044744,-361.72854456,0.00021917,2]
[358635466,1745325044754,-500.0,0.00021917,2]
[358635467,1745325044764,-500.0,0.00021917,2]
[358635468,1745325044775,-1777.31,0.00021917,2]
[358635469,1745325044787,-500.0,0.00021917,2]
[358635470,1745325044797,-500.0,0.00021917,2]
[358635471,1745325044806,-500.0,0.00021917,2]
[358635472,1745325044816,-500.0,0.00021917,2]
[358635473,1745325044826,-500.0,0.00021917,2]
[358635474,1745325044836,-500.0,0.00021917,2]
[358635475,1745325044845,-500.0,0.00021917,2]
[358635476,1745325044856,-500.0,0.00021917,2]
[358635477,1745325044865,-500.0,0.00021917,2]
[358635478,1745325044875,-468.13857408,0.00021917,2]
[358635479,1745325044885,-513.56409681,0.00021917,2]
[358635480,1745325044895,-500.0,0.00021917,2]
[358635481,1745325044905,-500.0,0.00021917,2]
[358635482,1745325044916,-500.0,0.00021917,2]
[358635483,1745325044926,-500.0,0.00021917,2]
[358635484,1745325044936,-500.0,0.00021917,2]
[358635485,1745325044946,-500.0,0.00021917,2]
[358635486,1745325044955,-500.0,0.00021917,2]
[358635487,1745325044965,-500.0,0.00021917,2]
[358635488,1745325044976,-500.0,0.00021917,2]
[358635489,1745325044986,-500.0,0.00021917,2]
[358635490,1745325044996,-500.0,0.00021917,2]
[358635491,1745325045006,-757.75,0.00021917,2]
[358635492,1745325045016,-500.0,0.00021917,2]
[358635493,1745325045026,-506.26261494,0.00021917,2]
[358635494,1745325045038,-936.86,0.00021917,2]
[358635495,1745325045051,-500.0,0.00021917,2]
[358635496,1745325045063,-500.0,0.00021917,2]
[358635497,1745325045073,-625.73,0.00021917,2]
[358635498,1745325045083,-500.0,0.00021917,2]
[358635499,1745325045095,-541.14,0.00021917,2]
[358635500,1745325045106,-500.0,0.00021917,2]
[358635501,1745325045117,-500.0,0.00021917,2]
[358635502,1745325045127,-500.85644021,0.00021917,2]
[358635503,1745325045138,-500.0,0.00021917,2]
[358635504,1745325045148,-500.0,0.00021917,2]
[358635505,1745325045158,-500.0,0.00021917,2]
[358635506,1745325045168,-500.0,0.00021917,2]
[358635507,1745325045177,-500.0,0.00021917,2]
[358635508,1745325045187,-507.26804273,0.00021917,2]
[358635509,1745325045196,-500.0,0.00021917,2]
[358635510,1745325045206,-500.0,0.00021917,2]
[358635511,1745325045216,-500.0,0.00021917,2]
[358635512,1745325045226,-500.0,0.00021917,2]
[358635513,1745325045236,-959.9,0.00021917,2]
[358635514,1745325045246,-500.0,0.00021917,2]
[358635515,1745325045257,-500.80780105,0.00021917,2]
[358635516,1745325045267,-500.0,0.00021917,2]
[358635517,1745325045277,-500.0,0.00021917,2]
[358635518,1745325045290,-500.0,0.00021917,2]
[358635519,1745325045307,-500.0,0.00021917,2]
[358635520,1745325045317,-500.0,0.00021917,2]
[358635521,1745325045326,-1932.02,0.00021917,2]
[358635522,1745325045336,-500.0,0.00021917,2]
[358635523,1745325045345,-500.0,0.00021917,2]
[358635524,1745325045400,-1000.0,0.00021917,2]
[358635525,1745325045410,-500.0,0.00021917,2]
[358635526,1745325045420,-500.0,0.00021917,2]
[358635527,1745325045430,-500.0,0.00021917,2]
[358635528,1745325045439,-500.0,0.00021917,2]
[358635529,1745325045449,-607.57,0.00021917,2]
[358635530,1745325045459,-723.74,0.00021917,2]
[358635531,1745325045469,-500.0,0.00021917,2]
[358635532,1745325045479,-500.0,0.00021917,2]
[358635533,1745325045489,-500.0,0.00021917,2]
[358635534,1745325045498,-500.0,0.00021917,2]
[358635535,1745325045508,-500.0,0.00021917,2]
[358635536,1745325045518,-264.05483498,0.00021917,2]
[358635537,1745325045528,-494.82033752,0.00021917,2]
[358635538,1745325045539,-764.74,0.00021917,2]
[358635539,1745325045549,-500.0,0.00021917,2]
[358635540,1745325045559,-544.62,0.00021917,2]
[358635541,1745325045569,-500.0,0.00021917,2]
[358635542,1745325045578,-500.0,0.00021917,2]
[358635543,1745325045588,-500.0,0.00021917,2]
[358635544,1745325045598,-500.0,0.00021917,2]
[358635545,1745325045607,-500.0,0.00021917,2]
[358635546,1745325045618,-500.0,0.00021917,2]
[358635547,1745325045627,-500.0,0.00021917,2]
[358635548,1745325045637,-500.0,0.00021917,2]
[358635549,1745325045647,-502.36297939,0.00021917,2]
[358635550,1745325045657,-592.95871272,0.00021917,2]
[358635551,1745325045666,-500.0,0.00021917,2]
[358635552,1745325045676,-500.0,0.00021917,2]
[358635553,1745325045686,-500.0,0.00021917,2]
[358635554,1745325045696,-502.89055827,0.00021917,2]
[358635555,1745325045705,-500.0,0.00021917,2]
[358635556,1745325045715,-160.0,0.00021917,2]
[358635557,1745325045724,-500.0,0.00021917,2]
[358635558,1745325045734,-503.3984315,0.00021917,2]
[358635559,1745325045744,-500.0,0.00021917,2]
[358635560,1745325045754,-500.0,0.00021917,2]
[358635561,1745325045764,-607.88,0.00021917,2]
[358635562,1745325045773,-500.0,0.00021917,2]
[358635563,1745325045784,-500.0,0.00021917,2]
[358635564,1745325045794,-510.29906048,0.00021917,2]
[358635565,1745325045804,-500.0,0.00021917,2]
[358635566,1745325045814,-504.83227008,0.00021917,2]
[358635567,1745325045824,-4149.45,0.00021917,2]
[358635568,1745325045834,-500.0,0.00021917,2]
[358635569,1745325045844,-500.0,0.00021917,2]
[358635570,1745325045853,-503.43116122,0.00021917,2]
[358635571,1745325045863,-500.0,0.00021917,2]
[358635572,1745325045872,-500.0,0.00021917,2]
[358635573,1745325045882,-500.0,0.00021917,2]
[358635574,1745325045891,-500.0,0.00021917,2]
[358635575,1745325045902,-500.0,0.00021917,2]
[358635576,1745325045911,-500.0,0.00021917,2]
[358635577,1745325045920,-500.0,0.00021917,2]
[358635578,1745325045930,-500.0,0.00021917,2]
[358635579,1745325045940,-500.0,0.00021917,2]
[358635580,1745325045950,-500.0,0.00021917,2]
[358635581,1745325045959,-500.0,0.00021917,2]
[358635582,1745325045969,-234.73295558,0.00021917,2]
[358635583,1745325045978,-225.394442,0.00021918,2]
[358635584,1745325045988,-166.0,0.00021918,2]
[358635585,1745325045998,-500.0,0.00021918,2]
[358635587,1745325046008,-500.0,0.00021918,2]
[358635588,1745325046017,-260.12531393,0.00021918,2]
[358635589,1745325046028,-151.0,0.00021918,2]
[358635590,1745325046039,-151.0,0.00021918,2]
[358635591,1745325046051,-151.0,0.00021918,2]
[358635592,1745325046060,-151.0,0.00021918,2]
[358635593,1745325046070,-151.0,0.00021918,2]
[358635594,1745325046082,-500.0,0.00021918,2]
[358635595,1745325046092,-151.0,0.00021918,2]
[358635596,1745325046104,-151.0,0.00021918,2]
[358635597,1745325046113,-500.0,0.00021938,2]
[358635599,1745325046124,-362.19133297,0.00021973,2]
[358635600,1745325046134,-500.0,0.00021973,2]
[358635601,1745325046144,-500.0,0.00021973,2]
[358635602,1745325046153,-500.0,0.00021973,2]
[358635603,1745325046162,-500.0,0.00021973,2]
[358635604,1745325046171,-556.61160428,0.00021973,2]
[358635606,1745325046181,-500.0,0.00021973,2]
[358635607,1745325046191,-500.0,0.00021973,2]
[358635608,1745325046201,-500.0,0.00021973,2]
[358635609,1745325046210,-500.0,0.00021973,2]
[358635610,1745325046220,-500.0,0.00021973,2]
[358635611,1745325046231,-500.0,0.00021973,2]
[358635613,1745325046241,-500.0,0.00021973,2]
[358635614,1745325046251,-500.0,0.00021973,2]
[358635615,1745325046262,-9702.0,0.00022,2]
[358635616,1745325046272,-500.0,0.0002205,2]
[358635617,1745325046283,-741.75,0.00022191,2]
[358635618,1745325046293,-505.82770341,0.00022191,2]
[358635619,1745325046302,-500.0,0.00022191,2]
[358635620,1745325046312,-500.0,0.00022191,2]
[358635621,1745325046323,-500.0,0.00022191,2]
[358635622,1745325046333,-635.66,0.00022191,2]
[358635623,1745325046343,-500.0,0.00022191,2]
[358635624,1745325046353,-500.0,0.00022191,2]
[358635625,1745325046363,-500.0,0.00022191,2]
[358635626,1745325046373,-500.0,0.00022191,2]
[358635627,1745325046383,-500.0,0.00022191,2]
[358635628,1745325046393,-500.0,0.00022191,2]
[358635629,1745325046403,-500.0,0.00022191,2]
[358635630,1745325046413,-515.86,0.00022191,2]
[358635631,1745325046423,-500.0,0.00022191,2]
[358635632,1745325046433,-500.0,0.00022191,2]
[358635633,1745325046443,-500.0,0.00022191,2]
[358635635,1745325046453,-500.0,0.00022191,2]
[358635636,1745325046466,-500.0,0.00022191,2]
[358635637,1745325046476,-500.0,0.00022191,2]
[358635638,1745325046487,-500.0,0.00022191,2]
[358635639,1745325046498,-500.0,0.00022191,2]
[358635640,1745325046508,-500.0,0.00022191,2]
[358635641,1745325046518,-560.1365621,0.00022191,2]
[358635642,1745325046528,-500.0,0.00022191,2]
[358635643,1745325046539,-500.0,0.00022191,2]
[358635644,1745325046550,-659.9,0.00022191,2]
[358635645,1745325046560,-500.0,0.00022191,2]
[358635646,1745325046570,-500.0,0.00022191,2]
[358635647,1745325046581,-500.0,0.00022191,2]
[358635648,1745325046590,-500.0,0.00022191,2]
[358635649,1745325046600,-500.0,0.00022191,2]
[358635650,1745325046610,-500.0,0.00022191,2]
[358635651,1745325046621,-500.0,0.00022191,2]
[358635652,1745325046630,-500.0,0.00022191,2]
[358635653,1745325046640,-500.0,0.00022191,2]
[358635654,1745325046650,-500.0,0.00022191,2]
[358635655,1745325046660,-500.0,0.00022191,2]
[358635656,1745325046670,-342.18701394,0.00022191,2]
[358635657,1745325046680,-500.0,0.00022191,2]
[358635658,1745325046690,-500.0,0.00022191,2]
[358635659,1745325046700,-500.0,0.00022191,2]
[358635660,1745325046711,-500.0,0.00022191,2]
[358635661,1745325046720,-500.0,0.00022191,2]
[358635662,1745325046730,-500.0,0.00022191,2]
[358635663,1745325046740,-500.0,0.00022191,2]
[358635664,1745325046750,-586.53,0.00022191,2]
[358635665,1745325046760,-742.33,0.00022191,2]
[358635666,1745325046770,-682.4,0.00022191,2]
[358635667,1745325046781,-500.0,0.00022191,2]
[358635668,1745325046792,-500.0,0.00022191,2]
[358635669,1745325046802,-500.0,0.00022191,2]
[358635670,1745325046812,-500.0,0.00022191,2]
[358635671,1745325046822,-500.0,0.00022191,2]
[358635672,1745325046832,-500.0,0.00022191,2]
[358635673,1745325046842,-500.0,0.00022191,2]
[358635674,1745325046851,-500.0,0.00022191,2]
[358635675,1745325046861,-500.0,0.00022191,2]
[358635676,1745325046871,-500.0,0.00022191,2]
[358635677,1745325046880,-1067.65,0.00022191,2]
[358635678,1745325046890,-500.0,0.00022191,2]
[358635679,1745325046900,-500.0,0.00022191,2]
[358635680,1745325046910,-619.4,0.00022191,2]
[358635681,1745325046920,-500.0,0.00022191,2]
[358635682,1745325046929,-500.0,0.00022191,2]
[358635683,1745325046939,-500.0,0.00022191,2]
[358635684,1745325046949,-500.0,0.00022191,2]
[358635685,1745325046959,-500.0,0.00022191,2]
[358635686,1745325046968,-500.0,0.00022191,2]
[358635687,1745325046978,-500.0,0.00022191,2]
[358635688,1745325046988,-402.96631046,0.00022191,2]
[358635689,1745325046998,-500.0,0.00022191,2]
[358635690,1745325047010,-500.0,0.00022191,2]
[358635691,1745325047019,-510.65501489,0.00022191,2]
[358635692,1745325047030,-500.0,0.00022191,2]
[358635693,1745325047041,-500.0,0.00022191,2]
[358635694,1745325047053,-279.98879875,0.00022191,2]
[358635695,1745325047063,-236.84519714,0.00022191,2]
[358635696,1745325047073,-500.0,0.00022191,2]
[358635697,1745325047084,-519.34569193,0.00022191,2]
[358635698,1745325047095,-500.0,0.00022191,2]
[358635699,1745325047105,-387.68245617,0.00022191,2]
[358635700,1745325047115,-573.99,0.00022191,2]
[358635701,1745325047124,-500.0,0.00022191,2]
[358635702,1745325047135,-500.0,0.00022191,2]
[358635703,1745325047145,-1519.62,0.00022191,2]
[358635704,1745325047155,-500.0,0.00022191,2]
[358635705,1745325047165,-3238.33,0.00022191,2]
[358635706,1745325047175,-500.0,0.00022191,2]
[358635707,1745325047184,-500.0,0.00022191,2]
[358635708,1745325047194,-500.0,0.00022191,2]
[358635709,1745325047204,-501.09037754,0.00022191,2]
[358635710,1745325047214,-500.0,0.00022191,2]
[358635711,1745325047225,-500.0,0.00022191,2]
[358635712,1745325047234,-500.0,0.00022191,2]
[358635713,1745325047244,-500.0,0.00022191,2]
[358635714,1745325047255,-500.0,0.00022191,2]
[358635715,1745325047265,-500.0,0.00022191,2]
[358635716,1745325047275,-500.0,0.00022191,2]
[358635717,1745325047286,-592.05,0.00022191,2]
[358635718,1745325047296,-500.0,0.00022191,2]
[358635719,1745325047306,-500.0,0.00022191,2]
[358635720,1745325047315,-500.0,0.00022191,2]
[358635721,1745325047325,-221.05642372,0.00022191,2]
[358635722,1745325047335,-502.8591018,0.00022191,2]
[358635723,1745325047346,-500.0,0.00022191,2]
[358635724,1745325047356,-3110.89,0.00022191,2]
[358635725,1745325047366,-500.0,0.00022191,2]
[358635726,1745325047376,-500.0,0.00022191,2]
[358635727,1745325047387,-500.0,0.00022191,2]
[358635728,1745325047397,-504.59063616,0.00022191,2]
[358635729,1745325047407,-505.33011739,0.00022191,2]
[358635730,1745325047417,-514.37271961,0.00022191,2]
[358635731,1745325047426,-500.0,0.00022191,2]
[358635732,1745325047436,-500.0,0.00022191,2]
[358635733,1745325047446,-500.0,0.00022191,2]
[358635734,1745325047457,-500.0,0.00022191,2]
[358635735,1745325047468,-500.0,0.00022191,2]
[358635736,1745325047478,-710.02,0.00022191,2]
[358635737,1745325047489,-153.482418,0.00022191,7]
[358635738,1745325047499,-500.0,0.00022191,2]
[358635739,1745325047509,-151.0,0.00022191,7]
[358635740,1745325047519,-531.60881479,0.00022191,2]
[358635741,1745325047529,-10413.81,0.00022191,2]
[358635742,1745325047539,-151.0,0.00022191,7]
[358635743,1745325047549,-500.0,0.00022191,2]
[358635744,1745325047559,-500.0,0.00022191,2]
[358635745,1745325047569,-287.67397708,0.00022191,2]
[358635746,1745325047581,-500.0,0.00022191,2]
[358635747,1745325047592,-436.69385746,0.00022191,2]
[358635748,1745325047603,-500.0,0.00022191,2]
[358635749,1745325047614,-500.0,0.00022191,2]
[358635750,1745325047624,-500.0,0.00022191,2]
[358635751,1745325047634,-500.0,0.00022191,2]
[358635752,1745325047644,-623.22,0.00022191,2]
[358635753,1745325047653,-500.0,0.00022191,2]
[358635754,1745325047663,-500.0,0.00022191,2]
[358635755,1745325047673,-500.0,0.00022191,2]
[358635756,1745325047683,-500.0,0.00022191,2]
[358635757,1745325047693,-500.0,0.00022191,2]
[358635758,1745325047703,-500.0,0.00022191,2]
[358635759,1745325047713,-500.0,0.00022191,2]
[358635760,1745325047723,-512.99,0.00022191,2]
[358635761,1745325047733,-500.0,0.00022191,2]
[358635762,1745325047744,-701.71,0.00022191,2]
[358635763,1745325047755,-500.0,0.00022191,2]
[358635764,1745325047765,-500.0,0.00022191,2]
[358635765,1745325047775,-500.0,0.00022191,2]
[358635766,1745325047785,-500.0,0.00022191,2]
[358635767,1745325047795,-500.0,0.00022191,2]
[358635768,1745325047805,-500.0,0.00022191,2]
[358635769,1745325047815,-500.0,0.00022191,2]
[358635770,1745325047827,-500.0,0.00022191,2]
[358635771,1745325047837,-500.0,0.00022191,2]
[358635772,1745325047849,-1747.23,0.00022191,2]
[358635773,1745325047859,-500.0,0.00022191,2]
[358635774,1745325047869,-500.0,0.00022191,2]
[358635775,1745325047879,-500.0,0.00022191,2]
[358635776,1745325047890,-500.0,0.00022191,2]
[358635777,1745325047901,-500.0,0.00022191,2]
[358635778,1745325047912,-500.0,0.00022191,2]
[358635779,1745325047921,-500.0,0.00022191,2]
[358635780,1745325047932,-277.99723843,0.00022191,2]
[358635781,1745325047941,-614.77,0.00022191,2]
[358635782,1745325047951,-500.0,0.00022191,2]
[358635783,1745325047962,-500.0,0.00022191,2]
[358635784,1745325047972,-6005.19,0.00022191,2]
[358635785,1745325047982,-520.10718635,0.00022191,2]
[358635786,1745325047993,-500.0,0.00022191,2]
[358635787,1745325048003,-500.0,0.00022191,2]
[358635788,1745325048013,-500.0,0.00022191,2]
[358635789,1745325048023,-679.36,0.00022191,2]
[358635790,1745325048033,-500.0,0.00022191,2]
[358635791,1745325048044,-501.69938003,0.00022191,2]
[358635792,1745325048058,-500.0,0.00022191,2]
[358635793,1745325048068,-151.0,0.00022191,7]
[358635794,1745325048078,-3154.6,0.00022191,2]
[358635795,1745325048088,-500.0,0.00022191,2]
[358635796,1745325048099,-500.0,0.00022191,2]
[358635797,1745325048110,-500.0,0.00022191,2]
[358635798,1745325048120,-500.0,0.00022191,2]
[358635799,1745325048131,-1777.31,0.00022191,2]
[358635800,1745325048142,-500.0,0.00022191,2]
[358635801,1745325048152,-151.0,0.00022191,7]
[358635802,1745325048163,-500.0,0.00022191,2]
[358635803,1745325048173,-500.0,0.00022191,2]
[358635804,1745325048183,-500.0,0.00022191,2]
[358635805,1745325048193,-500.0,0.00022191,2]
[358635806,1745325048203,-757.75,0.00022191,2]
[358635807,1745325048214,-500.0,0.00022191,2]
[358635808,1745325048224,-936.86,0.00022191,2]
[358635809,1745325048235,-500.0,0.00022191,2]
[358635810,1745325048245,-500.0,0.00022191,2]
[358635811,1745325048256,-625.73,0.00022191,2]
[358635812,1745325048266,-500.0,0.00022191,2]
[358635813,1745325048277,-541.14,0.00022191,2]
[358635814,1745325048287,-500.0,0.00022191,2]
[358635815,1745325048298,-500.0,0.00022191,2]
[358635816,1745325048309,-500.0,0.00022191,2]
[358635817,1745325048321,-500.0,0.00022191,2]
[358635818,1745325048332,-151.0,0.00022191,7]
[358635819,1745325048343,-500.0,0.00022191,2]
[358635820,1745325048354,-500.0,0.00022191,2]
[358635821,1745325048366,-500.0,0.00022191,2]
[358635822,1745325048376,-500.0,0.00022191,2]
[358635823,1745325048388,-500.0,0.00022191,2]
[358635824,1745325048398,-500.0,0.00022191,2]
[358635825,1745325048409,-500.0,0.00022191,2]
[358635826,1745325048419,-959.9,0.00022191,2]
[358635827,1745325048430,-500.0,0.00022191,2]
[358635828,1745325048440,-500.0,0.00022191,2]
[358635829,1745325048451,-500.0,0.00022191,2]
[358635830,1745325048462,-457.02890223,0.00022191,2]
[358635831,1745325048472,-500.0,0.00022191,2]
[358635832,1745325048483,-1932.02,0.00022191,2]
[358635833,1745325048494,-500.0,0.00022191,2]
[358635834,1745325048505,-500.0,0.00022191,2]
[358635835,1745325048515,-532.79272639,0.00022191,2]
[358635836,1745325048527,-500.0,0.00022191,2]
[358635837,1745325048538,-607.57,0.00022191,2]
[358635838,1745325048549,-723.74,0.00022191,2]
[358635839,1745325048716,-515.51396382,0.00022191,2]
[358635840,1745325048727,-500.0,0.00022191,2]
[358635841,1745325048737,-764.74,0.00022191,2]
[358635842,1745325048747,-500.0,0.00022191,2]
[358635843,1745325048756,-544.62,0.00022191,2]
[358635844,1745325048766,-568.27800806,0.00022191,2]
[358635845,1745325048775,-500.0,0.00022191,2]
[358635846,1745325048785,-514.96835971,0.00022191,2]
[358635847,1745325048796,-500.0,0.00022191,2]
[358635848,1745325048806,-500.0,0.00022191,2]
[358635849,1745325048815,-500.0,0.00022191,2]
[358635850,1745325048825,-500.0,0.00022191,2]
[358635851,1745325048834,-500.0,0.00022191,2]
[358635852,1745325048844,-506.67902245,0.00022191,2]
[358635853,1745325048854,-504.3851446,0.00022191,2]
[358635854,1745325048863,-500.0,0.00022191,2]
[358635855,1745325048872,-502.87730235,0.00022191,2]
[358635856,1745325048882,-516.49854394,0.00022191,2]
[358635857,1745325048891,-528.23856941,0.00022191,2]
[358635858,1745325048901,-607.88,0.00022191,2]
[358635859,1745325048910,-500.0,0.00022191,2]
[358635860,1745325048920,-500.0,0.00022191,2]
[358635861,1745325048930,-4149.45,0.00022191,2]
[358635862,1745325048940,-511.76396241,0.00022191,2]
[358635863,1745325048950,-509.31683203,0.00022191,2]
[358635864,1745325048959,-500.0,0.00022191,2]
[358635865,1745325048969,-500.0,0.00022191,2]
[358635866,1745325048979,-506.66075598,0.00022191,2]
[358635867,1745325048989,-500.0,0.00022191,2]
[358635868,1745325048998,-502.78677908,0.00022191,2]
[358635869,1745325049008,-500.0,0.00022191,2]
[358635870,1745325049018,-500.0,0.00022422,2]
[358635871,1745325049028,-500.0,0.00022464,2]
[358635872,1745325049039,-500.0,0.00022464,2]
[358635873,1745325049052,-500.0,0.00022464,2]
[358635874,1745325049061,-74027.51826711,0.00022465,2]
[358635875,1745325049071,-25395.48717202,0.00022465,3]
[358635876,1745325049080,-160.0,0.00022465,3]
[358635877,1745325049090,-741.75,0.00022465,2]
[358635878,1745325049101,-500.0,0.00022465,2]
[358635879,1745325049110,-500.0,0.00022465,2]
[358635880,1745325049120,-635.66,0.00022465,2]
[358635881,1745325049130,-500.0,0.00022465,2]
[358635882,1745325049141,-500.0,0.00022465,2]
[358635883,1745325049151,-254.94146799,0.00022465,2]
[358635884,1745325049160,-500.0,0.00022465,2]
[358635885,1745325049170,-515.86,0.00022465,2]
[358635886,1745325049180,-500.0,0.00022465,2]
[358635887,1745325049189,-500.0,0.00022465,2]
[358635888,1745325049199,-500.0,0.00022465,2]
[358635889,1745325049208,-500.0,0.00022465,2]
[358635890,1745325049218,-500.0,0.00022465,2]
[358635891,1745325049228,-500.0,0.00022465,2]
[358635892,1745325049238,-444.06608682,0.00022465,2]
[358635893,1745325049248,-500.0,0.00022465,2]
[358635894,1745325049258,-500.0,0.00022465,2]
[358635895,1745325049267,-659.9,0.00022465,2]
[358635896,1745325049277,-500.0,0.00022465,2]
[358635897,1745325049288,-500.0,0.00022465,2]
[358635898,1745325049298,-500.0,0.00022465,2]
[358635899,1745325049308,-500.0,0.00022465,2]
[358635900,1745325049318,-500.0,0.00022465,2]
[358635901,1745325049328,-500.0,0.00022465,2]
[358635902,1745325049338,-500.0,0.00022465,2]
[358635903,1745325049348,-500.0,0.00022465,2]
[358635904,1745325049359,-418.11835149,0.00022465,2]
[358635905,1745325049369,-151.0,0.00022465,7]
[358635906,1745325049379,-151.0,0.00022465,7]
[358635907,1745325049390,-500.0,0.00022465,2]
[358635908,1745325049400,-304.20680205,0.00022465,2]
[358635909,1745325049411,-500.0,0.00022465,2]
[358635910,1745325049422,-500.0,0.00022465,2]
[358635911,1745325049432,-500.0,0.00022465,2]
[358635912,1745325049441,-151.0,0.00022465,7]
[358635913,1745325049452,-500.0,0.00022465,2]
[358635914,1745325049462,-500.0,0.00022465,2]
[358635915,1745325049471,-586.53,0.00022465,2]
[358635916,1745325049481,-742.33,0.00022465,2]
[358635917,1745325049491,-682.4,0.00022465,2]
[358635918,1745325049501,-500.0,0.00022465,2]
[358635919,1745325049511,-500.0,0.00022465,2]
[358635920,1745325049521,-500.0,0.00022465,2]
[358635921,1745325049531,-500.0,0.00022465,2]
[358635922,1745325049540,-500.0,0.00022465,2]
[358635923,1745325049550,-243.28,0.00022465,2]
[358635924,1745325049560,-151.918562,0.00022465,7]
[358635925,1745325049570,-151.0,0.00022465,7]
[358635926,1745325049581,-1067.65,0.00022465,2]
[358635927,1745325049591,-500.0,0.00022465,2]
[358635928,1745325049600,-1132.828869,0.00022465,2]
[358635929,1745325049610,-500.0,0.00022465,2]
[358635930,1745325049621,-1132.828869,0.00022465,2]
[358635931,1745325049630,-619.4,0.00022465,2]
[358635932,1745325049639,-500.0,0.00022465,2]
[358635933,1745325049649,-203.14244207,0.00022465,2]
[358635934,1745325049658,-500.0,0.00022465,2]
[358635935,1745325049668,-257.327527,0.00022465,7]
[358635936,1745325049677,-500.0,0.00022465,2]